fUST/lending_fUST_20260623
["ID","MTS","AMOUNT","RATE_DAILY","PERIOD"]
[426149759,1782180632000,-3102.22998963,0.00013,2]
[426149757,1782180632000,-492.68959803,0.00012417,2]
[426149753,1782180632000,-151.0,9.7e-05,2]
[426149751,1782180632000,-1309.47769728,9.412e-05,2]
[426150077,1782180638000,-500.0,0.00016443,2]
[426150083,1782180638000,-500.0,0.00016443,2]
[426150082,1782180638000,-500.0,0.00016443,2]
[426150084,1782180638000,-500.0,0.00016443,2]
[426150086,1782180638000,-500.0,0.00016443,2]
[426150088,1782180638000,-211.13522791,0.00016536,2]
[426150085,1782180638000,-500.0,0.00016443,2]
[426150090,1782180638000,-528.46645893,0.00016717,2]
[426150091,1782180638000,-501.9412228,0.00016717,2]
[426150087,1782180638000,-10105.0612081,0.00016444,2]
[426150093,1782180638000,-519.50342338,0.00016717,2]
[426150092,1782180638000,-502.79764249,0.00016717,2]
[426150094,1782180638000,-566.09744135,0.00016717,2]
[426150096,1782180638000,-504.03814809,0.00016717,2]
[426150095,1782180638000,-579.84582294,0.00016717,2]
[426150097,1782180638000,-546.87278929,0.00016717,2]
[426150089,1782180638000,-540.55662625,0.00016717,2]
[426150078,1782180638000,-500.0,0.00016443,2]
[426150074,1782180638000,-500.0,0.00016443,2]
[426150081,1782180638000,-500.0,0.00016443,2]
[426150101,1782180638000,-510.32943012,0.00016717,2]
[426150062,1782180638000,-1000.0,0.00013699,2]
[426150061,1782180638000,-471.58673452,0.00013,2]
[426150065,1782180638000,-172.3214525,0.00015068,2]
[426150066,1782180638000,-748.582498,0.00016182,2]
[426150063,1782180638000,-4596.6514484,0.00013717,2]
[426150067,1782180638000,-1674.26745378,0.00016436,2]
[426150079,1782180638000,-500.0,0.00016443,2]
[426150068,1782180638000,-500.0,0.00016443,2]
[426150069,1782180638000,-500.0,0.00016443,2]
[426150070,1782180638000,-500.0,0.00016443,2]
[426150071,1782180638000,-500.0,0.00016443,2]
[426150073,1782180638000,-500.0,0.00016443,2]
[426150080,1782180638000,-500.0,0.00016443,2]
[426150076,1782180638000,-500.0,0.00016443,2]
[426150075,1782180638000,-504.47715643,0.00016443,2]
[426150064,1782180638000,-5166.11955979,0.00015,2]
[426150099,1782180638000,-500.0,0.00016717,2]
[426150072,1782180638000,-500.0,0.00016443,2]
[426150105,1782180638000,-506.82283812,0.00016717,2]
[426150123,1782180638000,-567.55839018,0.00017676,2]
[426150124,1782180638000,-501.36630557,0.00017676,2]
[426150126,1782180638000,-503.43604232,0.00017676,2]
[426150136,1782180638000,-500.0,0.00019652,2]
[426150127,1782180638000,-509.08846032,0.00017676,2]
[426150130,1782180638000,-365.2396198,0.00017698,2]
[426150128,1782180638000,-513.75650382,0.00017676,2]
[426150129,1782180638000,-538.5994016,0.00017676,2]
[426150131,1782180638000,-186.287,0.0001891,2]
[426150132,1782180638000,-1674.26745377,0.00019274,2]
[426150135,1782180638000,-500.0,0.00019652,2]
[426150138,1782180638000,-567.4403116,0.00019652,2]
[426150137,1782180638000,-500.0,0.00019652,2]
[426150134,1782180638000,-325.43037763,0.00019652,2]
[426150139,1782180638000,-466581.93038142,0.00019653,2]
[426150133,1782180638000,-74208.30190397,0.00019553,2]
[426150102,1782180638000,-509.41878878,0.00016717,2]
[426150125,1782180638000,-503.29739106,0.00017676,2]
[426150121,1782180638000,-539.03844478,0.00017676,2]
[426150122,1782180638000,-562.18646477,0.00017676,2]
[426150120,1782180638000,-505.85574419,0.00017676,2]
[426150104,1782180638000,-549.59033587,0.00016717,2]
[426150103,1782180638000,-512.12355348,0.00016717,2]
[426150098,1782180638000,-500.0,0.00016717,2]
[426150100,1782180638000,-500.0,0.00016717,2]
[426150106,1782180638000,-583.00932921,0.00016717,2]
[426150108,1782180638000,-500.0,0.00017402,2]
[426150107,1782180638000,-500.0,0.00017402,2]
[426150109,1782180638000,-500.0,0.00017402,2]
[426150110,1782180638000,-500.0,0.00017402,2]
[426150111,1782180638000,-500.0,0.00017402,2]
[426150113,1782180638000,-500.0,0.00017402,2]
[426150116,1782180638000,-538.50284789,0.00017402,2]
[426150115,1782180638000,-500.0,0.00017402,2]
[426150114,1782180638000,-500.0,0.00017402,2]
[426150117,1782180638000,-500.0,0.00017402,2]
[426150119,1782180638000,-512.25737589,0.00017676,2]
[426150118,1782180638000,-500.0,0.00017402,2]
[426150112,1782180638000,-500.0,0.00017402,2]
[426150280,1782181834000,-4187.87883828,9.755e-05,2]
[426150281,1782181834000,-5000.0,9.854e-05,2]
[426150282,1782181834000,-300.0,9.953e-05,2]
[426150285,1782181834000,-300.0,0.00010255,2]
[426150284,1782181834000,-316.97,0.00010055,2]
[426150283,1782181834000,-316.96,9.954e-05,2]
[426150288,1782181835000,-300.0,0.00010255,2]
[426150286,1782181835000,-300.0,0.00010255,2]
[426150289,1782181835000,-300.0,0.00010255,2]
[426150290,1782181835000,-300.0,0.00010255,2]
[426150297,1782181835000,-300.0,0.00010255,2]
[426150287,1782181835000,-300.0,0.00010255,2]
[426150292,1782181835000,-300.0,0.00010255,2]
[426150294,1782181835000,-300.0,0.00010255,2]
[426150296,1782181835000,-300.0,0.00010255,2]
[426150295,1782181835000,-300.0,0.00010255,2]
[426150298,1782181835000,-166.07,0.00010255,2]
[426150293,1782181835000,-300.0,0.00010255,2]
[426150291,1782181835000,-300.0,0.00010255,2]
[426150393,1782181838000,-170.67522393,0.00010954,2]
[426150389,1782181838000,-316.95,0.00010787,2]
[426150386,1782181838000,-316.95,0.00010685,2]
[426150387,1782181838000,-151.0,0.0001075,2]
[426150404,1782181838000,-317.0,0.00011368,2]
[426150419,1782181838000,-259.3006873,0.00013153,2]
[426150412,1782181838000,-1961.400175,0.00012649,2]
[426150408,1782181838000,-1961.400175,0.00012138,2]
[426150417,1782181838000,-3584.0192286,0.00012964,2]
[426150414,1782181838000,-864.0,0.00012655,2]
[426150391,1782181838000,-316.95,0.00010888,2]
[426150406,1782181838000,-720.0,0.00011505,2]
[426150400,1782181838000,-316.95,0.00011192,2]
[426150378,1782181838000,-600.0,0.00010459,2]
[426150399,1782181838000,-316.97,0.00011113,2]
[426150397,1782181838000,-316.95,0.0001109,2]
[426150395,1782181838000,-316.95,0.00010989,2]
[426150384,1782181838000,-316.97,0.00010584,2]
[426150382,1782181838000,-316.95,0.00010584,2]
[426150380,1782181838000,-6535.8413772,0.00010517,2]
[426150376,1782181838000,-316.96,0.00010452,2]
[426150372,1782181838000,-151.0,0.00010266,2]
[426150370,1782181838000,-300.0,0.00010255,2]
[426150374,1782181838000,-316.96,0.00010347,2]
[426150368,1782181838000,-133.93,0.00010255,2]
[426150366,1782181838000,-316.96,9.854e-05,2]
[426150402,1782181838000,-316.95,0.00011293,2]
[426150421,1782181838000,-1961.400175,0.0001316,2]
[426150423,1782181838000,-4165.36111115,0.00013292,2]
[426150426,1782181838000,-1961.400175,0.00013671,2]
[426150484,1782181838000,-1081.17,0.00016437,2]
[426150482,1782181838000,-907.78,0.00016437,2]
[426150478,1782181838000,-500.0,0.00016437,2]
[426150476,1782181838000,-505.91730625,0.00016164,2]
[426150470,1782181838000,-500.0,0.0001589,2]
[426150465,1782181838000,-500.0,0.00015342,2]
[426150467,1782181838000,-500.0,0.00015616,2]
[426150463,1782181838000,-244.0,0.00015313,2]
[426150474,1782181838000,-199.5109542,0.00015994,2]
[426150454,1782181838000,-500.0,0.00014794,2]
[426150472,1782181838000,-544.9478048,0.00015994,2]
[426150461,1782181838000,-1000.0,0.00015313,2]
[426150458,1782181838000,-177.1193762,0.00015068,2]
[426150480,1782181838000,-1371.87,0.00016437,2]
[426150452,1782181838000,-1961.400175,0.00014693,2]
[426150428,1782181838000,-500.0,0.00013698,2]
[426150430,1782181838000,-500.0,0.00013698,2]
[426150444,1782181838000,-500.0,0.00013972,2]
[426150456,1782181838000,-500.0,0.00015068,2]
[426150442,1782181838000,-1000.0,0.00013921,2]
[426150440,1782181838000,-1000.0,0.00013699,2]
[426150448,1782181838000,-500.0,0.00014246,2]
[426150434,1782181838000,-500.0,0.00013698,2]
[426150432,1782181838000,-523.99591016,0.00013698,2]
[426150438,1782181838000,-183.9287581,0.00013699,2]
[426150436,1782181838000,-682.812997,0.00013699,2]
[426150450,1782181838000,-500.0,0.0001452,2]
[426150446,1782181838000,-1961.400175,0.00014182,2]
[426150561,1782181839000,-500.0,0.00016438,2]
[426150562,1782181839000,-500.0,0.00016438,2]
[426150565,1782181839000,-500.0,0.00016438,2]
[426150559,1782181839000,-500.0,0.00016438,2]
[426150566,1782181839000,-500.0,0.00016438,2]
[426150546,1782181839000,-500.0,0.00016438,2]
[426150553,1782181839000,-500.0,0.00016438,2]
[426150556,1782181839000,-606.84217565,0.00016438,2]
[426150550,1782181839000,-500.0,0.00016438,2]
[426150549,1782181839000,-500.0,0.00016438,2]
[426150571,1782181839000,-500.0,0.00016438,2]
[426150555,1782181839000,-500.0,0.00016438,2]
[426150568,1782181839000,-500.0,0.00016438,2]
[426150578,1782181839000,-500.0,0.00016438,2]
[426150584,1782181839000,-500.0,0.00016438,2]
[426150587,1782181839000,-500.0,0.00016438,2]
[426150589,1782181839000,-500.0,0.00016438,2]
[426150591,1782181839000,-500.0,0.00016438,2]
[426150572,1782181839000,-500.0,0.00016438,2]
[426150580,1782181839000,-500.0,0.00016438,2]
[426150582,1782181839000,-508.01625472,0.00016438,2]
[426150593,1782181839000,-500.0,0.00016438,2]
[426150595,1782181839000,-500.0,0.00016438,2]
[426150603,1782181839000,-500.0,0.00016438,2]
[426150597,1782181839000,-500.0,0.00016438,2]
[426150534,1782181839000,-500.0,0.00016438,2]
[426150585,1782181839000,-500.0,0.00016438,2]
[426150532,1782181839000,-500.0,0.00016438,2]
[426150519,1782181839000,-500.0,0.00016438,2]
[426150540,1782181839000,-500.0,0.00016438,2]
[426150487,1782181839000,-500.0,0.00016437,2]
[426150489,1782181839000,-500.0,0.00016437,2]
[426150497,1782181839000,-500.0,0.00016438,2]
[426150493,1782181839000,-500.0,0.00016437,2]
[426150491,1782181839000,-500.0,0.00016437,2]
[426150495,1782181839000,-500.0,0.00016437,2]
[426150499,1782181839000,-500.0,0.00016438,2]
[426150501,1782181839000,-500.0,0.00016438,2]
[426150503,1782181839000,-525.28321616,0.00016438,2]
[426150505,1782181839000,-500.0,0.00016438,2]
[426150511,1782181839000,-500.0,0.00016438,2]
[426150507,1782181839000,-511.66738131,0.00016438,2]
[426150530,1782181839000,-500.0,0.00016438,2]
[426150509,1782181839000,-500.0,0.00016438,2]
[426150601,1782181839000,-500.0,0.00016438,2]
[426150515,1782181839000,-500.0,0.00016438,2]
[426150517,1782181839000,-500.0,0.00016438,2]
[426150523,1782181839000,-500.0,0.00016438,2]
[426150513,1782181839000,-500.0,0.00016438,2]
[426150525,1782181839000,-500.0,0.00016438,2]
[426150538,1782181839000,-500.0,0.00016438,2]
[426150536,1782181839000,-500.0,0.00016438,2]
[426150542,1782181839000,-500.0,0.00016438,2]
[426150527,1782181839000,-506.05258044,0.00016438,2]
[426150544,1782181839000,-500.0,0.00016438,2]
[426150529,1782181839000,-510.38123683,0.00016438,2]
[426150521,1782181839000,-1000.0,0.00016438,2]
[426150599,1782181839000,-500.0,0.00016438,2]
[426150607,1782181839000,-1000.0,0.00016438,2]
[426150609,1782181839000,-500.0,0.00016438,2]
[426150672,1782181839000,-500.0,0.00016438,2]
[426150670,1782181839000,-505.20584568,0.00016438,2]
[426150674,1782181839000,-500.0,0.00016438,2]
[426150686,1782181839000,-500.0,0.00016438,2]
[426150682,1782181839000,-500.0,0.00016438,2]
[426150678,1782181839000,-500.0,0.00016438,2]
[426150676,1782181839000,-500.0,0.00016438,2]
[426150680,1782181839000,-500.0,0.00016438,2]
[426150684,1782181839000,-619.37339515,0.00016438,2]
[426150700,1782181839000,-503.86073582,0.00016438,2]
[426150702,1782181839000,-621.7586043,0.00016438,2]
[426150708,1782181839000,-500.0,0.00016438,2]
[426150706,1782181839000,-500.0,0.00016438,2]
[426150704,1782181839000,-500.0,0.00016438,2]
[426150690,1782181839000,-500.0,0.00016438,2]
[426150694,1782181839000,-500.0,0.00016438,2]
[426150696,1782181839000,-500.0,0.00016438,2]
[426150712,1782181839000,-500.0,0.00016438,2]
[426150692,1782181839000,-500.0,0.00016438,2]
[426150710,1782181839000,-500.0,0.00016438,2]
[426150714,1782181839000,-500.0,0.00016438,2]
[426150698,1782181839000,-501.26026994,0.00016438,2]
[426150717,1782181839000,-352.41509876,0.00016438,2]
[426150722,1782181839000,-500.0,0.00016438,2]
[426150719,1782181839000,-395.47966324,0.00016438,2]
[426150668,1782181839000,-230.93284306,0.00016438,2]
[426150666,1782181839000,-500.0,0.00016438,2]
[426150688,1782181839000,-500.0,0.00016438,2]
[426150661,1782181839000,-500.0,0.00016438,2]
[426150611,1782181839000,-500.0,0.00016438,2]
[426150605,1782181839000,-501.58928432,0.00016438,2]
[426150664,1782181839000,-500.0,0.00016438,2]
[426150618,1782181839000,-432.44290062,0.00016438,2]
[426150616,1782181839000,-500.0,0.00016438,2]
[426150625,1782181839000,-500.0,0.00016438,2]
[426150620,1782181839000,-151.0,0.00016438,2]
[426150622,1782181839000,-500.0,0.00016438,2]
[426150627,1782181839000,-151.0,0.00016438,2]
[426150633,1782181839000,-500.0,0.00016438,2]
[426150623,1782181839000,-505.46587435,0.00016438,2]
[426150637,1782181839000,-500.0,0.00016438,2]
[426150631,1782181839000,-500.0,0.00016438,2]
[426150716,1782181839000,-500.0,0.00016438,2]
[426150629,1782181839000,-277.580309,0.00016438,2]
[426150639,1782181839000,-500.0,0.00016438,2]
[426150658,1782181839000,-500.0,0.00016438,2]
[426150656,1782181839000,-500.0,0.00016438,2]
[426150654,1782181839000,-500.0,0.00016438,2]
[426150652,1782181839000,-505.4151142,0.00016438,2]
[426150648,1782181839000,-500.0,0.00016438,2]
[426150613,1782181839000,-565.74989913,0.00016438,2]
[426150650,1782181839000,-500.0,0.00016438,2]
[426150642,1782181839000,-500.0,0.00016438,2]
[426150640,1782181839000,-500.0,0.00016438,2]
[426150644,1782181839000,-397.23871396,0.00016438,2]
[426150635,1782181839000,-500.0,0.00016438,2]
[426150646,1782181839000,-500.0,0.00016438,2]
[426150775,1782181840000,-500.0,0.00016438,2]
[426150765,1782181840000,-500.0,0.00016438,2]
[426150761,1782181840000,-500.0,0.00016438,2]
[426150763,1782181840000,-500.0,0.00016438,2]
[426150759,1782181840000,-500.0,0.00016438,2]
[426150773,1782181840000,-500.0,0.00016438,2]
[426150769,1782181840000,-500.0,0.00016438,2]
[426150767,1782181840000,-500.0,0.00016438,2]
[426150771,1782181840000,-500.0,0.00016438,2]
[426150757,1782181840000,-500.0,0.00016438,2]
[426150754,1782181840000,-500.0,0.00016438,2]
[426150750,1782181840000,-500.0,0.00016438,2]
[426150748,1782181840000,-500.0,0.00016438,2]
[426150746,1782181840000,-500.0,0.00016438,2]
[426150733,1782181840000,-500.0,0.00016438,2]
[426150735,1782181840000,-500.0,0.00016438,2]
[426150731,1782181840000,-500.0,0.00016438,2]
[426150726,1782181840000,-500.0,0.00016438,2]
[426150729,1782181840000,-500.0,0.00016438,2]
[426150724,1782181840000,-500.0,0.00016438,2]
[426150777,1782181840000,-502.0726209,0.00016438,2]
[426150752,1782181840000,-500.0,0.00016438,2]
[426150727,1782181840000,-500.0,0.00016438,2]
[426150787,1782181840000,-500.0,0.00016438,2]
[426150789,1782181840000,-500.0,0.00016438,2]
[426150797,1782181840000,-152.175642,0.00016438,2]
[426150829,1782181840000,-500.0,0.00016438,2]
[426150827,1782181840000,-500.0,0.00016438,2]
[426150825,1782181840000,-500.0,0.00016438,2]
[426150823,1782181840000,-500.0,0.00016438,2]
[426150817,1782181840000,-500.0,0.00016438,2]
[426150807,1782181840000,-500.0,0.00016438,2]
[426150801,1782181840000,-500.0,0.00016438,2]
[426150813,1782181840000,-500.0,0.00016438,2]
[426150821,1782181840000,-500.0,0.00016438,2]
[426150815,1782181840000,-500.0,0.00016438,2]
[426150811,1782181840000,-500.0,0.00016438,2]
[426150809,1782181840000,-500.0,0.00016438,2]
[426150805,1782181840000,-500.0,0.00016438,2]
[426150803,1782181840000,-500.0,0.00016438,2]
[426150785,1782181840000,-152.143939,0.00016438,2]
[426150799,1782181840000,-500.0,0.00016438,2]
[426150783,1782181840000,-500.0,0.00016438,2]
[426150779,1782181840000,-500.0,0.00016438,2]
[426150781,1782181840000,-500.0,0.00016438,2]
[426150793,1782181840000,-500.0,0.00016438,2]
[426150791,1782181840000,-500.0,0.00016438,2]
[426150819,1782181840000,-500.0,0.00016438,2]
[426150795,1782181840000,-151.0,0.00016438,2]
[426151047,1782181841000,-500.0,0.00016438,2]
[426151045,1782181841000,-500.0,0.00016438,2]
[426151049,1782181841000,-500.0,0.00016438,2]
[426151030,1782181841000,-500.0,0.00016438,2]
[426151014,1782181841000,-500.0,0.00016438,2]
[426151032,1782181841000,-500.0,0.00016438,2]
[426151020,1782181841000,-500.0,0.00016438,2]
[426151008,1782181841000,-500.0,0.00016438,2]
[426151016,1782181841000,-500.0,0.00016438,2]
[426151039,1782181841000,-500.0,0.00016438,2]
[426151028,1782181841000,-321.89695039,0.00016438,2]
[426151038,1782181841000,-500.0,0.00016438,2]
[426151065,1782181841000,-500.0,0.00016438,2]
[426151036,1782181841000,-500.0,0.00016438,2]
[426151041,1782181841000,-500.0,0.00016438,2]
[426151026,1782181841000,-500.0,0.00016438,2]
[426151043,1782181841000,-500.0,0.00016438,2]
[426151055,1782181841000,-500.0,0.00016438,2]
[426151053,1782181841000,-500.0,0.00016438,2]
[426151051,1782181841000,-500.0,0.00016438,2]
[426151057,1782181841000,-500.0,0.00016438,2]
[426151061,1782181841000,-500.0,0.00016438,2]
[426151059,1782181841000,-500.0,0.00016438,2]
[426151018,1782181841000,-506.28655435,0.00016438,2]
[426151069,1782181841000,-500.0,0.00016438,2]
[426151063,1782181841000,-500.0,0.00016438,2]
[426151034,1782181841000,-500.0,0.00016438,2]
[426151003,1782181841000,-500.0,0.00016438,2]
[426150997,1782181841000,-500.0,0.00016438,2]
[426151012,1782181841000,-500.0,0.00016438,2]
[426150971,1782181841000,-500.0,0.00016438,2]
[426150959,1782181841000,-500.0,0.00016438,2]
[426150957,1782181841000,-151.0,0.00016438,2]
[426150965,1782181841000,-517.50834311,0.00016438,2]
[426150961,1782181841000,-500.0,0.00016438,2]
[426150963,1782181841000,-559.40764289,0.00016438,2]
[426150973,1782181841000,-500.0,0.00016438,2]
[426151073,1782181841000,-500.0,0.00016438,2]
[426150969,1782181841000,-500.0,0.00016438,2]
[426150975,1782181841000,-500.0,0.00016438,2]
[426150967,1782181841000,-335.09224358,0.00016438,2]
[426150979,1782181841000,-500.0,0.00016438,2]
[426151022,1782181841000,-500.0,0.00016438,2]
[426150981,1782181841000,-500.0,0.00016438,2]
[426150985,1782181841000,-500.0,0.00016438,2]
[426150983,1782181841000,-500.0,0.00016438,2]
[426150987,1782181841000,-500.0,0.00016438,2]
[426151001,1782181841000,-500.0,0.00016438,2]
[426150999,1782181841000,-500.0,0.00016438,2]
[426150989,1782181841000,-500.0,0.00016438,2]
[426150991,1782181841000,-500.0,0.00016438,2]
[426150992,1782181841000,-500.0,0.00016438,2]
[426150995,1782181841000,-500.0,0.00016438,2]
[426151006,1782181841000,-500.0,0.00016438,2]
[426151005,1782181841000,-500.0,0.00016438,2]
[426151010,1782181841000,-500.0,0.00016438,2]
[426150977,1782181841000,-500.0,0.00016438,2]
[426151074,1782181841000,-506.01938517,0.00016438,2]
[426151169,1782181841000,-918.8082,0.00016575,2]
[426151067,1782181841000,-514.28609132,0.00016438,2]
[426151141,1782181841000,-151.0,0.00016438,2]
[426151143,1782181841000,-151.0,0.00016438,2]
[426151145,1782181841000,-151.0,0.00016438,2]
[426151149,1782181841000,-151.0,0.00016438,2]
[426151128,1782181841000,-500.0,0.00016438,2]
[426151132,1782181841000,-500.0,0.00016438,2]
[426151130,1782181841000,-177.68411411,0.00016438,2]
[426151147,1782181841000,-151.0,0.00016438,2]
[426151134,1782181841000,-500.0,0.00016438,2]
[426151151,1782181841000,-200.83488,0.00016438,2]
[426151153,1782181841000,-151.0,0.00016438,2]
[426151155,1782181841000,-153.230686,0.00016438,2]
[426151139,1782181841000,-500.0,0.00016438,2]
[426151159,1782181841000,-500.0,0.00016443,2]
[426151157,1782181841000,-500.0,0.00016442,2]
[426151167,1782181841000,-500.0,0.00016443,2]
[426151163,1782181841000,-500.0,0.00016443,2]
[426151165,1782181841000,-500.0,0.00016443,2]
[426151171,1782181841000,-500.0,0.00016711,2]
[426151176,1782181841000,-1371.87,0.00016711,2]
[426151180,1782181841000,-314.133392,0.00016711,2]
[426151178,1782181841000,-1081.17,0.00016711,2]
[426151177,1782181841000,-907.78,0.00016711,2]
[426151179,1782181841000,-314.133392,0.00016711,2]
[426151181,1782181841000,-314.133392,0.00016711,2]
[426151182,1782181841000,-314.133392,0.00016711,2]
[426151161,1782181841000,-500.0,0.00016443,2]
[426151137,1782181841000,-500.0,0.00016438,2]
[426151070,1782181841000,-500.0,0.00016438,2]
[426151126,1782181841000,-500.0,0.00016438,2]
[426151136,1782181841000,-500.0,0.00016438,2]
[426151076,1782181841000,-500.0,0.00016438,2]
[426151085,1782181841000,-500.0,0.00016438,2]
[426151080,1782181841000,-500.0,0.00016438,2]
[426151078,1782181841000,-511.55376957,0.00016438,2]
[426151084,1782181841000,-510.5943811,0.00016438,2]
[426151082,1782181841000,-500.0,0.00016438,2]
[426151089,1782181841000,-500.0,0.00016438,2]
[426151093,1782181841000,-500.0,0.00016438,2]
[426151099,1782181841000,-507.79155085,0.00016438,2]
[426151087,1782181841000,-177.29770999,0.00016438,2]
[426151091,1782181841000,-500.0,0.00016438,2]
[426151095,1782181841000,-500.0,0.00016438,2]
[426151097,1782181841000,-500.0,0.00016438,2]
[426151107,1782181841000,-202.97638188,0.00016438,2]
[426151103,1782181841000,-500.0,0.00016438,2]
[426151122,1782181841000,-500.0,0.00016438,2]
[426151115,1782181841000,-500.0,0.00016438,2]
[426151113,1782181841000,-500.0,0.00016438,2]
[426151120,1782181841000,-500.0,0.00016438,2]
[426151111,1782181841000,-500.0,0.00016438,2]
[426151124,1782181841000,-500.0,0.00016438,2]
[426151118,1782181841000,-500.0,0.00016438,2]
[426151117,1782181841000,-500.0,0.00016438,2]
[426151101,1782181841000,-500.0,0.00016438,2]
[426151105,1782181841000,-500.0,0.00016438,2]
[426151109,1782181841000,-500.0,0.00016438,2]
[426151223,1782181842000,-504.93150787,0.00016712,2]
[426151222,1782181842000,-510.91029616,0.00016712,2]
[426151224,1782181842000,-504.49960122,0.00016712,2]
[426151233,1782181842000,-500.0,0.00016712,2]
[426151220,1782181842000,-508.47916998,0.00016712,2]
[426151211,1782181842000,-508.54693494,0.00016712,2]
[426151210,1782181842000,-517.25871808,0.00016712,2]
[426151218,1782181842000,-517.84438079,0.00016712,2]
[426151216,1782181842000,-510.34324347,0.00016712,2]
[426151217,1782181842000,-507.31114488,0.00016712,2]
[426151225,1782181842000,-504.74020536,0.00016712,2]
[426151221,1782181842000,-502.40670016,0.00016712,2]
[426151227,1782181842000,-512.11095517,0.00016712,2]
[426151238,1782181842000,-502.40884387,0.00016712,2]
[426151226,1782181842000,-505.05872908,0.00016712,2]
[426151231,1782181842000,-323.15857346,0.00016712,2]
[426151230,1782181842000,-550.13350938,0.00016712,2]
[426151229,1782181842000,-505.52972821,0.00016712,2]
[426151232,1782181842000,-500.0,0.00016712,2]
[426151234,1782181842000,-500.0,0.00016712,2]
[426151248,1782181842000,-151.0,0.00016712,2]
[426151244,1782181842000,-500.0,0.00016712,2]
[426151242,1782181842000,-151.0,0.00016712,2]
[426151235,1782181842000,-504.18978131,0.00016712,2]
[426151237,1782181842000,-524.17536764,0.00016712,2]
[426151215,1782181842000,-509.31941045,0.00016712,2]
[426151239,1782181842000,-500.0,0.00016712,2]
[426151228,1782181842000,-504.39669834,0.00016712,2]
[426151219,1782181842000,-485.32810905,0.00016712,2]
[426151196,1782181842000,-500.0,0.00016712,2]
[426151212,1782181842000,-514.51523361,0.00016712,2]
[426151183,1782181842000,-151.0,0.00016711,2]
[426151236,1782181842000,-1000.0,0.00016712,2]
[426151195,1782181842000,-510.89212351,0.00016712,2]
[426151185,1782181842000,-500.0,0.00016711,2]
[426151191,1782181842000,-500.0,0.00016712,2]
[426151188,1782181842000,-500.0,0.00016711,2]
[426151194,1782181842000,-500.0,0.00016712,2]
[426151184,1782181842000,-151.0,0.00016711,2]
[426151187,1782181842000,-500.0,0.00016711,2]
[426151189,1782181842000,-500.0,0.00016712,2]
[426151186,1782181842000,-500.0,0.00016711,2]
[426151190,1782181842000,-502.75213005,0.00016712,2]
[426151193,1782181842000,-594.39206382,0.00016712,2]
[426151197,1782181842000,-500.0,0.00016712,2]
[426151208,1782181842000,-538.9079898,0.00016712,2]
[426151207,1782181842000,-521.54253267,0.00016712,2]
[426151198,1782181842000,-514.64646986,0.00016712,2]
[426151203,1782181842000,-512.74913454,0.00016712,2]
[426151204,1782181842000,-513.90760739,0.00016712,2]
[426151202,1782181842000,-518.96206843,0.00016712,2]
[426151206,1782181842000,-629.87078896,0.00016712,2]
[426151205,1782181842000,-507.28230981,0.00016712,2]
[426151200,1782181842000,-504.88442198,0.00016712,2]
[426151201,1782181842000,-500.0,0.00016712,2]
[426151199,1782181842000,-1000.0,0.00016712,2]
[426151209,1782181842000,-510.90424861,0.00016712,2]